bitfinex-derivatives/quotes_ETHF0:USTF0_20241020
["timestamp","ask_amount","ask_price","bid_price","bid_amount"]
[1729459949496,1.16374933,2714.6,2714.3,0.36847]
[1729459949698,1.16374933,2714.6,2714.1,3.2078]
[1729459949996,1.16374933,2714.6,2714.3,0.36846]
[1729459951908,0.4179,2714.6,2714.3,0.36846]
[1729459952214,1.238,2714.5,2714.3,0.36846]
[1729459953311,1.238,2714.5,2714.4,0.36846]
[1729459959607,0.4179,2714.6,2714.5,0.36844]
[1729459960007,1.6559,2714.6,2714.5,0.36844]
[1729459963309,1.6559,2714.6,2714.4,0.36845]
[1729459963718,1.6559,2714.6,2714.0,4.12907]
[1729459963921,0.86956,2714.5,2714.0,3.2078]
[1729459964110,0.86956,2714.5,2714.4,0.36846]
[1729459966408,3.2078,2715.1,2714.4,3.684]
[1729459966716,3.2078,2715.1,2714.9,0.36839]
[1729459966717,0.86963,2715.0,2714.9,0.36839]
[1729459967419,0.86963,2715.0,2714.6,0.92106]
[1729459967420,3.2078,2715.1,2714.6,0.92106]
[1729459967615,3.2078,2715.1,2714.7,3.2078]
[1729459967616,1.177,2715.1,2714.7,3.2078]
[1729459967818,1.177,2715.1,2715.0,0.36837]
[1729459972315,1.177,2715.1,2714.7,4.12883]
[1729459972316,1.177,2715.3,2715.2,0.36834]
[1729459976720,1.177,2715.3,2715.2,0.36835]
[1729459986526,1.177,2715.3,2714.8,3.2078]
[1729459986722,1.177,2715.3,2715.1,0.36836]
[1729459987023,0.4045,2715.2,2715.1,0.36836]
[1729459990930,0.36838,2715.0,2714.8,3.2078]
[1729459991332,4.05158,2715.0,2714.8,3.2078]
[1729459991932,0.36838,2715.0,2714.7,0.36841]
[1729459993429,3.2078,2715.1,2714.7,0.36841]
[1729459993831,0.36838,2715.0,2714.7,0.36841]
[1729459994028,3.57617,2715.1,2714.8,0.3684]
[1729459994235,3.57617,2715.1,2713.3,5.69090861]
[1729459994428,3.57617,2715.1,2712.1,3.5127]
[1729459994429,3.693,2714.5,2710.1,1.98193468]
[1729459994627,0.92245,2710.6,2709.3,5.30433247]
[1729459994828,3.2078,2709.8,2709.3,3.37865247]
[1729459995130,3.2078,2709.4,2708.3,0.36928]
[1729459995326,7.68355338,2710.6,2709.4,5.26271364]
[1729459995522,7.68355338,2710.6,2709.7,5.26271364]
[1729459995725,3.2078,2709.8,2709.7,5.26271364]
[1729459996527,3.39251216,2709.8,2709.7,4.33915375]
[1729459996726,4.82385525,2709.8,2709.7,4.33915375]
[1729459997439,3.2078,2709.8,2709.7,4.33915375]
[1729459999326,3.2078,2709.8,2709.7,3.04611515]
[1729460005232,7.26728,2709.8,2708.8,1.828]
[1729460005434,3.2078,2708.9,2708.8,1.828]
[1729460005936,3.2078,2708.9,2708.8,3.04611515]
[1729460010737,3.577,2708.9,2708.8,3.04611515]
[1729460014141,3.2078,2708.9,2708.8,3.04611515]
[1729460014439,3.577,2708.9,2708.8,3.04611515]
[1729460017644,3.2078,2708.9,2708.8,3.04611515]
[1729460017840,3.577,2708.9,2708.8,3.04611515]
[1729460019844,3.577,2708.9,2708.8,2.69965515]
[1729460023844,1.42817927,2710.5,2708.3,1.607]
[1729460024149,3.2078,2712.0,2710.4,9.3248]
[1729460024339,3.2078,2712.0,2710.1,3.693]
[1729460024340,3.2078,2712.0,2710.3,3.2078]
[1729460024540,3.2078,2711.0,2710.3,0.069]
[1729460024844,3.2078,2711.3,2710.3,0.069]
[1729460025054,0.36899,2710.5,2710.3,0.069]
[1729460025241,0.369,2710.4,2710.3,0.069]
[1729460025549,7.2664,2710.4,2710.3,0.069]
[1729460025944,4.0586,2710.4,2710.3,0.069]
[1729460026147,7.2664,2710.4,2710.3,0.069]
[1729460028544,0.4037,2711.4,2710.3,0.069]
[1729460028545,2.38553431,2712.2,2710.3,1.761]
[1729460028750,0.36882,2711.8,2711.0,0.36892]
[1729460028952,3.2078,2712.1,2711.2,3.2078]
[1729460029155,0.36876,2712.2,2711.2,3.2078]
[1729460029449,0.3688,2711.9,2711.2,3.2078]
[1729460029652,3.2078,2712.3,2711.2,3.2078]
[1729460029843,0.36878,2712.1,2711.2,3.2078]
[1729460030049,3.2078,2712.3,2711.2,3.2078]
[1729460030350,0.36878,2712.1,2711.2,3.2078]
[1729460030748,3.2078,2712.3,2711.2,3.2078]
[1729460030946,0.36876,2712.2,2711.2,3.57668]
[1729460031144,0.36877,2712.1,2711.2,3.2078]
[1729460031640,3.2078,2712.3,2711.2,3.57669]
[1729460031841,0.36876,2712.2,2711.2,3.57669]
[1729460033548,0.36876,2712.2,2711.2,3.2078]
[1729460033749,0.36876,2712.2,2711.3,0.36888]
[1729460033946,0.3826,2712.4,2710.8,3.2768]
[1729460033947,3.2078,2712.0,2710.8,3.2768]
[1729460034139,3.2078,2711.5,2710.8,0.069]
[1729460034343,0.92197,2712.0,2710.8,0.069]
[1729460034344,0.36889,2711.2,2710.8,0.069]
[1729460034552,0.36889,2711.3,2710.8,0.069]
[1729460035159,0.36888,2711.3,2710.8,0.069]
[1729460036548,0.36887,2711.4,2710.8,0.069]
[1729460037053,0.36888,2711.3,2710.8,0.069]
[1729460037943,0.36888,2711.3,2710.6,0.35828325]
[1729460038145,0.36888,2711.3,2710.6,3.56608325]
[1729460038550,0.18461668,2711.2,2710.6,3.56608325]
[1729460038941,0.18461668,2711.1,2710.6,3.56608325]
[1729460039147,2.38553431,2711.6,2710.6,3.2078]
[1729460039349,0.36887,2711.4,2710.7,0.36896]
[1729460039555,4.67362681,2711.3,2710.7,0.36896]
[1729460040155,5.04250681,2711.3,2710.7,0.36896]
[1729460040348,2.2880925,2711.2,2710.6,3.57677]
[1729460040547,0.18461549,2711.1,2710.6,3.57677]
[1729460040751,0.18461549,2711.0,2710.7,0.36895]
[1729460040949,2.75441431,2711.3,2710.7,0.36895]
[1729460040950,0.18461549,2710.9,2710.7,0.36895]
[1729460041150,0.18461549,2710.8,2710.7,0.36895]
[1729460041343,2.38553431,2711.3,2710.7,0.36895]
[1729460041550,2.38553431,2711.3,2710.6,3.2078]
[1729460041551,2.38553431,2711.3,2710.8,0.36894]
[1729460041753,4.66363683,2711.3,2710.8,0.36894]
[1729460042345,3.2078,2711.2,2710.8,0.36894]
[1729460042552,0.18461109,2711.1,2710.8,0.36894]
[1729460043053,0.18461109,2711.1,2710.9,0.36893]
[1729460045556,0.18461109,2711.0,2710.9,0.36893]
[1729460045760,0.18461109,2711.3,2711.0,0.36891]
[1729460045949,0.18461269,2711.2,2711.0,0.36891]
[1729460046149,0.36887,2711.4,2711.0,0.36891]
[1729460046349,0.1846136,2711.3,2711.0,0.36891]
[1729460046655,0.1846136,2711.3,2710.6,3.2078]
[1729460046957,0.1846136,2711.3,2710.9,0.36892]
[1729460047543,0.5534936,2711.3,2710.9,0.36892]
[1729460047747,0.1846136,2711.2,2710.9,0.36892]
[1729460048457,3.3924136,2711.2,2710.9,0.36892]
[1729460048756,3.2078,2711.2,2710.9,0.36892]
[1729460049758,4.2656,2711.5,2710.9,0.36892]
[1729460049948,0.55348056,2711.4,2710.9,0.36892]
[1729460050150,0.18461056,2711.3,2710.9,0.36892]
[1729460051056,0.18461056,2711.3,2711.0,0.36892]
[1729460051258,0.36887,2711.4,2711.0,0.36892]
[1729460051458,0.18461661,2711.3,2711.0,0.36892]
[1729460051862,0.18461661,2711.3,2710.6,3.2078]
[1729460052066,4.2656,2711.5,2711.0,0.36891]
[1729460052358,0.55347903,2711.4,2711.0,0.36891]
[1729460052562,0.36887,2711.4,2711.0,0.36891]
[1729460052953,0.18461692,2711.3,2711.0,0.36892]
[1729460059363,2.09636789,2711.3,2711.0,0.36892]
[1729460060957,0.18461615,2711.2,2711.0,0.36892]
[1729460061159,5.48842097,2711.4,2711.0,0.36892]
[1729460061456,0.18461617,2711.3,2711.0,0.36892]
[1729460062563,2.09636714,2711.3,2711.0,0.36892]
[1729460062961,1.91175097,2711.4,2711.2,0.36889]
[1729460063166,1.91175097,2711.7,2711.6,0.36884]
[1729460063357,0.18458566,2711.7,2711.6,0.36884]
[1729460063557,0.18458566,2711.7,2711.2,3.2078]
[1729460063558,1.91175097,2711.8,2711.3,0.92218]
[1729460063761,1.91175097,2711.8,2711.7,0.36882]
[1729460064463,1.91952799,2711.8,2711.3,0.92218]
[1729460064673,2.10413019,2711.7,2711.6,0.36884]
[1729460064965,1.91954453,2711.7,2711.6,0.36884]
[1729460066665,2.38553431,2711.8,2711.6,0.36884]
[1729460067666,4.66118181,2711.7,2711.6,0.36884]
[1729460067858,2.38553431,2711.7,2711.6,0.36884]
[1729460068471,2.2756475,2711.7,2711.2,5.26502]
[1729460068669,3.57658,2712.1,2711.2,4.3428]
[1729460068670,1.92549614,2711.3,2711.2,4.3428]
[1729460068864,1.92549614,2711.3,2711.2,4.71169]
[1729460069071,1.92549614,2711.3,2711.2,8.39969]
[1729460069460,2.28214139,2711.3,2711.2,8.39969]
[1729460069665,2.09756238,2711.3,2711.2,8.39969]
[1729460069859,2.40687101,2711.4,2711.2,8.39969]
[1729460069860,2.40687101,2711.4,2711.2,8.0308]
[1729460070065,2.40687101,2711.4,2711.3,4.05688]
[1729460072478,4.68908462,2711.4,2711.3,4.05688]
[1729460073175,2.28221361,2711.4,2711.3,4.05688]
[1729460073381,2.09764502,2711.4,2711.0,0.92228]
[1729460073567,2.09764502,2711.4,2709.7,2.38984417]
[1729460073568,2.40687101,2711.1,2710.1,4.3307]
[1729460073769,2.41089532,2710.6,2710.4,3.2078]
[1729460073968,2.41089532,2710.6,2710.1,1.1229]
[1729460073969,1.92861354,2710.3,2710.1,4.3307]
[1729460074168,1.92861354,2710.3,2710.1,3.2078]
[1729460074169,2.77972319,2710.3,2710.1,3.2078]
[1729460074476,2.28219566,2710.2,2709.3,2.2832]
[1729460074769,3.2078,2710.7,2709.3,2.2832]
[1729460074770,1.92829331,2709.6,2709.5,0.36912]
[1729460074967,1.92829331,2709.6,2709.5,3.57692]
[1729460075168,1.92829331,2709.6,2709.5,7.26732]
[1729460076184,2.1128619,2709.6,2709.5,7.26732]
[1729460076567,1.92829331,2709.6,2709.5,7.26732]
[1729460076979,0.18456859,2709.6,2709.5,7.26732]
[1729460077182,1.92829331,2709.7,2709.6,0.36911]
[1729460077479,1.92829331,2709.7,2709.6,4.05951]
[1729460079782,0.18467979,2709.7,2709.6,4.05951]
[1729460079977,0.18468315,2709.7,2709.6,4.05951]
[1729460080178,2.11297646,2709.7,2709.6,4.05951]
[1729460080480,0.18468315,2709.7,2709.6,4.05951]
[1729460080681,1.92829331,2709.8,2709.6,4.05951]
[1729460080874,1.92829331,2709.8,2709.6,3.6904]
[1729460081980,1.92829331,2709.8,2709.6,4.0595]
[1729460082184,2.11297646,2709.8,2709.6,0.3691]
[1729460082484,0.18468315,2709.7,2709.6,0.36911]
[1729460083181,0.36907,2709.9,2709.6,4.05951]
[1729460083487,0.36907,2709.9,2709.6,0.36911]
[1729460083676,0.36907,2709.9,2709.5,3.2078]
[1729460083877,0.36907,2709.9,2709.6,0.36911]
[1729460084181,1.81099125,2709.9,2709.6,0.36911]
[1729460084774,1.81099125,2709.9,2709.6,0.3691]
[1729460084973,1.44192125,2709.9,2709.6,0.3691]
[1729460085175,0.36908,2709.8,2709.6,0.3691]
[1729460086385,0.36908,2709.8,2709.7,0.36909]
[1729460086692,0.36908,2709.8,2709.6,0.36911]
[1729460089395,0.36908,2709.8,2709.6,0.3691]
[1729460090588,0.36908,2709.8,2709.7,0.36909]
[1729460091279,1.44192125,2710.0,2709.7,0.36909]
[1729460091280,0.36908,2709.9,2709.7,0.36909]
[1729460091484,1.44192125,2710.0,2709.7,0.36909]
[1729460091485,0.36909,2709.8,2709.7,0.36909]
[1729460093889,1.44192125,2710.0,2709.6,3.2078]
[1729460094090,0.36909,2709.7,2709.6,3.57691]
[1729460095001,0.36909,2709.8,2709.6,3.5769]
[1729460095300,0.36909,2709.8,2709.6,0.3691]
[1729460096599,0.36909,2709.8,2709.6,0.36911]
[1729460097596,1.44192125,2710.0,2709.6,0.36911]
[1729460097597,0.3691,2709.7,2709.6,0.3691]
[1729460100200,1.44192125,2709.9,2709.7,0.36909]
[1729460100201,0.36909,2709.8,2709.7,0.36909]
[1729460100985,1.44192125,2709.9,2709.5,3.2078]
[1729460101188,0.36911,2709.6,2709.5,3.2078]
[1729460104388,0.36912,2709.6,2709.4,0.36913]
[1729460104592,0.36912,2709.5,2709.4,0.36913]
[1729460104998,0.36912,2709.6,2709.4,0.36914]
[1729460105195,0.36912,2709.5,2709.4,0.36914]
[1729460105901,0.36914,2709.4,2709.3,3.57694]
[1729460106092,0.36913,2709.5,2709.4,0.36913]
[1729460106593,0.36913,2709.5,2709.3,3.2078]
[1729460106594,2.58532125,2709.8,2709.3,3.2078]
[1729460106901,0.36913,2709.5,2709.4,0.36913]
[1729460107103,0.36914,2709.4,2709.3,3.57694]
[1729460107296,2.58532125,2709.8,2709.3,3.2078]
[1729460107599,0.36913,2709.5,2709.4,0.36913]
[1729460109498,0.36912,2709.6,2709.5,0.36912]
[1729460109699,0.3691,2709.7,2709.6,0.3691]
[1729460109905,0.36912,2709.6,2709.5,0.36912]
[1729460110697,0.36911,2709.6,2709.5,0.36912]
[1729460112707,1.81102125,2709.7,2709.5,0.36912]
[1729460113503,1.6266305,2709.6,2709.5,0.36912]
[1729460114399,1.92829331,2710.2,2709.5,1.21]
[1729460114599,1.92829331,2710.6,2710.1,3.2078]
[1729460114800,4.17709331,2710.8,2710.2,1.21]
[1729460114998,3.03999331,2710.8,2710.7,0.36896]
[1729460115203,1.1117,2710.8,2710.4,3.2078]
[1729460115407,3.03999331,2710.8,2710.7,0.36896]
[1729460115707,1.1117,2710.8,2710.7,0.36896]
[1729460116407,3.03999331,2710.8,2710.7,0.36896]
[1729460117400,1.1117,2710.8,2710.7,0.36896]
[1729460118198,1.1117,2710.8,2710.4,3.2078]
[1729460118199,1.92194842,2710.8,2710.4,4.13028]
[1729460118398,1.92194842,2710.8,2710.4,3.2078]
[1729460118399,1.9233519,2710.8,2710.4,3.2078]
[1729460118599,1.9233519,2710.8,2710.7,0.36896]
[1729460119205,3.2078,2711.3,2710.4,3.2078]
[1729460119397,3.2078,2711.3,2710.5,0.36899]
[1729460119610,3.2078,2711.3,2710.8,0.36893]
[1729460119804,3.2078,2711.3,2710.9,0.36893]
[1729460121508,3.2078,2711.3,2710.9,0.36892]
[1729460121901,3.2078,2711.3,2710.5,0.92247]
[1729460122306,3.2078,2711.3,2710.7,3.2078]
[1729460122501,3.2078,2711.3,2711.0,0.36891]
[1729460122907,3.2078,2711.3,2710.9,0.36892]
[1729460123103,3.2078,2711.3,2711.0,0.36891]
[1729460123304,3.2078,2711.3,2711.1,0.3689]
[1729460124014,3.2078,2711.3,2711.2,0.36889]
[1729460126508,5.61246745,2711.3,2711.2,0.36889]
[1729460126703,7.68165019,2711.3,2711.2,0.36889]
[1729460127013,5.61246745,2711.3,2711.2,0.36889]
[1729460127316,3.2078,2711.3,2711.2,0.36889]
[1729460128207,5.27540931,2711.3,2711.2,0.36889]
[1729460128512,2.06760931,2711.3,2711.2,0.36889]
[1729460128713,2.4017289,2711.3,2711.2,0.36889]
[1729460128902,4.46933821,2711.3,2711.2,0.36889]
[1729460129506,2.06760931,2711.3,2711.2,0.36889]
[1729460129911,2.06583922,2711.3,2711.0,3.2078]
[1729460130110,1.92059472,2711.1,2711.0,3.57672]
[1729460130511,1.92059472,2711.2,2711.1,0.3689]
[1729460131609,1.92059472,2711.2,2711.0,3.2078]
[1729460131610,1.92059472,2711.3,2711.2,0.36889]
[1729460131804,1.92059472,2711.4,2711.3,0.36888]
[1729460132215,4.3676,2711.9,2711.6,0.36882]
[1729460132216,0.36881,2711.8,2711.6,0.36882]
[1729460132414,0.36881,2711.8,2711.7,0.36882]
[1729460132907,3.688,2711.8,2711.7,0.36882]
[1729460133217,3.688,2711.8,2711.3,0.36888]
[1729460133218,5.75192614,2711.8,2711.3,0.36888]
[1729460133515,1.91885678,2711.5,2711.2,3.2078]
[1729460133715,1.91885678,2711.5,2711.4,0.36886]
[1729460134118,1.91885678,2711.6,2711.5,0.36885]
[1729460134317,0.18456823,2711.6,2711.5,3.2078]
[1729460134517,1.91885678,2711.7,2711.6,0.36884]
[1729460135415,0.18456796,2711.7,2711.4,3.2078]
[1729460135720,0.18456796,2711.6,2711.5,0.36885]
[1729460135924,3.07865678,2711.9,2711.8,0.36881]
[1729460136216,3.26322524,2711.9,2711.8,0.36881]
[1729460136420,5.03156846,2711.9,2711.8,0.36881]
[1729460136809,5.03156846,2711.9,2711.4,3.2078]
[1729460137115,2.10342524,2711.8,2711.6,0.36883]
[1729460137313,0.18456846,2711.7,2711.6,0.36883]
[1729460139212,0.18458359,2711.7,2711.6,0.36883]
[1729460139920,1.5286,2711.9,2711.6,0.36883]
[1729460140509,1.5286,2711.9,2711.2,4.13003]
[1729460140714,1.5286,2711.9,2711.6,0.36883]
[1729460140922,3.62567787,2711.9,2711.6,0.36883]
[1729460141218,0.18458347,2711.8,2711.6,0.36883]
[1729460141717,0.18458347,2711.8,2711.2,0.92223]
[1729460142017,0.18458347,2711.8,2711.7,0.36882]
[1729460142417,3.87258347,2711.8,2711.7,0.36882]
[1729460143119,0.18458347,2711.8,2711.7,0.36882]
[1729460144520,0.18458288,2711.8,2711.2,0.92223]
[1729460144719,0.95551227,2711.3,2711.1,3.2078]
[1729460144912,0.95551227,2711.3,2711.2,0.36889]
[1729460148623,1.91102454,2711.6,2711.5,0.36885]
[1729460148920,2.09560857,2711.6,2711.5,0.36885]
[1729460149120,2.09560857,2711.6,2711.2,0.92223]
[1729460149121,0.36882,2711.7,2711.6,0.36884]
[1729460149424,0.36881,2711.8,2711.2,0.92223]
[1729460149716,0.36881,2711.8,2711.6,0.36883]
[1729460149920,1.52861,2711.9,2711.6,0.36883]
[1729460150120,6.14383293,2711.9,2711.6,0.36883]
[1729460150317,2.22683801,2711.8,2711.6,0.36883]
[1729460150518,4.616077,2711.8,2711.6,0.36883]
[1729460150725,4.616077,2711.8,2711.7,0.36882]
[1729460151023,2.09604428,2711.8,2711.7,0.36882]
[1729460151222,5.78404428,2711.8,2711.7,0.36882]
[1729460151519,5.78404428,2711.8,2711.6,0.36883]
[1729460151719,0.18458616,2711.7,2711.6,0.36883]
[1729460151923,2.09604428,2711.8,2711.6,0.36883]
[1729460152225,0.18458616,2711.7,2711.6,0.36883]
[1729460152424,1.91145812,2711.7,2711.6,0.36883]
[1729460154229,1.1598,2711.9,2711.6,0.36883]
[1729460155115,2.23066103,2711.8,2711.6,0.36883]
[1729460155312,2.39285544,2711.8,2711.6,0.36883]
[1729460155519,4.62473419,2711.8,2711.6,0.36883]
[1729460155721,2.23187875,2711.7,2711.6,0.36883]
[1729460156028,4.62478879,2711.8,2711.7,0.36882]
[1729460156217,4.62478827,2711.8,2711.7,0.36882]
[1729460156418,2.23193283,2711.8,2711.7,0.36882]
[1729460159328,4.3676,2711.9,2711.7,0.36882]
[1729460159828,1.1598,2711.9,2711.7,0.36882]
[1729460160330,2.05583808,2711.8,2711.7,0.36882]
[1729460160523,5.52975974,2711.8,2711.7,0.36882]
[1729460162527,8.89573231,2711.8,2711.7,0.36882]
[1729460163130,8.89573231,2711.8,2711.3,0.92218]
[1729460163330,2.88909682,2711.6,2711.3,0.92218]
[1729460163522,2.88909682,2711.6,2711.5,0.36885]
[1729460163523,8.42473887,2711.6,2711.5,0.36885]
[1729460163723,8.42838199,2711.6,2711.5,0.36885]
[1729460164122,5.53928517,2711.6,2711.5,0.36885]
[1729460164323,3.29522324,2711.6,2711.5,0.36885]
[1729460164531,1.1598,2711.9,2711.7,0.36882]
[1729460165433,5.53324038,2711.8,2711.7,0.36882]
[1729460165932,7.41292434,2711.8,2711.7,0.36882]
[1729460166123,9.38836248,2711.8,2711.7,0.36882]
[1729460168237,9.38065166,2711.8,2711.7,0.36882]
[1729460169027,21.39842345,2711.8,2710.5,3.2078]
[1729460169227,2.89080235,2710.7,2710.6,0.36897]
[1729460169431,2.89080235,2710.8,2710.6,0.36897]
[1729460169633,3.37260275,2711.0,2710.6,0.36897]
[1729460169634,0.36892,2711.0,2710.6,0.36897]
[1729460169830,1.7211,2711.1,2710.5,3.2078]
[1729460170032,2.09001,2711.1,2710.7,0.36896]
[1729460170629,2.09001,2711.1,2710.5,3.2078]
[1729460170630,3.37062343,2710.9,2710.5,3.2078]
[1729460170828,5.5011816,2710.8,2710.7,0.36896]
[1729460171032,5.5011816,2710.8,2710.6,0.36896]
[1729460171331,8.39023272,2710.7,2710.5,0.36898]
[1729460171525,2.2294637,2710.6,2710.4,1.6703]
[1729460171727,3.07369113,2710.6,2710.3,0.369]
[1729460171927,2.04482369,2710.5,2710.3,0.369]
[1729460172238,2.2294637,2710.4,2710.3,0.369]
[1729460172534,2.04482369,2710.4,2710.3,0.369]
[1729460172826,2.04482369,2710.4,2710.3,0.36901]
[1729460173224,2.40511204,2710.4,2710.3,0.36901]
[1729460173425,2.2294637,2710.4,2710.3,0.36901]
[1729460173830,4.63457574,2710.4,2710.3,0.36901]
[1729460174635,2.2294637,2710.4,2710.3,0.36901]
[1729460174828,2.04482369,2710.4,2710.3,0.36901]
[1729460175535,2.58975205,2710.5,2710.2,3.2078]
[1729460175536,0.36897,2710.6,2710.4,0.369]
[1729460176433,2.22571881,2710.5,2710.4,0.369]
[1729460176638,4.6289004,2710.5,2710.4,0.369]
[1729460177336,2.22571881,2710.5,2710.4,0.369]
[1729460177831,2.04106224,2710.5,2710.4,0.369]
[1729460178030,2.40318159,2710.5,2710.4,0.369]
[1729460178432,2.22571881,2710.5,2710.4,0.369]
[1729460179334,2.04106224,2710.5,2710.4,0.369]
[1729460180240,0.36897,2710.7,2710.4,0.369]
[1729460180438,3.2078,2710.9,2710.0,2.7815]
[1729460180634,0.36898,2710.6,2710.3,0.36901]
[1729460181240,1.92152471,2710.4,2710.3,0.36901]
[1729460181934,1.92152471,2710.4,2710.3,0.48442252]
[1729460182242,1.92152471,2710.4,2710.3,0.59983202]
[1729460183537,1.92152471,2710.5,2710.3,0.23082202]
[1729460183847,1.92152471,2710.5,2710.0,4.9623]
[1729460183848,1.92152471,2710.5,2710.4,0.59982202]
[1729460184240,1.92152471,2710.5,2710.4,0.4844095]
[1729460185045,1.92152471,2710.5,2710.4,0.59981854]
[1729460185542,1.92152471,2710.5,2710.4,0.4844095]
[1729460185742,1.92152471,2710.5,2710.4,0.369]
[1729460185942,0.36897,2710.7,2710.5,0.36898]
[1729460186746,3.2078,2710.9,2710.5,0.36898]
[1729460186950,2.58983833,2710.8,2710.5,0.36898]
[1729460187144,4.61838248,2710.7,2710.5,0.36898]
[1729460187351,0.18465684,2710.6,2710.5,0.36898]
[1729460187539,2.58215099,2710.7,2710.5,0.48438825]
[1729460187846,0.18465684,2710.6,2710.5,0.36898]
[1729460188046,2.58215099,2710.7,2710.5,0.48438876]
[1729460188349,4.61798277,2710.6,2710.5,0.36898]
[1729460188641,4.43332593,2710.6,2710.5,0.48438882]
[1729460190352,4.43332593,2710.6,2710.5,0.36898]
[1729460190545,4.43332593,2710.6,2710.5,0.48438797]
[1729460190751,4.43332593,2710.6,2710.5,0.36898]
[1729460191947,0.36895,2710.8,2710.5,0.36898]
[1729460192951,2.39792128,2710.6,2710.5,0.36898]
[1729460193246,4.43451839,2710.6,2710.5,0.36898]
[1729460194945,2.39792128,2710.6,2710.5,0.36898]
[1729460195345,0.18465457,2710.6,2710.5,0.36898]
[1729460195545,0.18465457,2710.6,2710.4,0.36899]
[1729460195848,2.10375907,2710.5,2710.4,0.369]
[1729460196046,1.9191045,2710.5,2710.4,0.369]
[1729460197045,0.36897,2710.7,2710.5,0.36898]
[1729460197753,3.2078,2710.9,2710.5,0.36898]
[1729460197949,2.3976593,2710.7,2710.5,0.36898]
[1729460198139,4.61864572,2710.7,2710.5,0.36898]
[1729460198460,2.22106467,2710.6,2710.5,0.36898]
[1729460199848,2.03640585,2710.6,2710.5,0.36898]
[1729460200146,4.61922278,2710.7,2710.5,0.36898]
[1729460200361,2.22156348,2710.6,2710.5,0.36898]
[1729460200540,2.40588062,2710.6,2710.5,0.11540784]
[1729460200740,4.61922278,2710.6,2710.1,3.2078]
[1729460200941,1.91874006,2710.4,2710.2,0.5998541]
[1729460201143,0.18465286,2710.4,2710.3,0.11541705]
[1729460201348,0.18466162,2710.4,2710.3,0.11541705]
[1729460201547,0.18466162,2710.4,2709.9,1.6057]
[1729460201548,1.8485,2710.4,2709.9,1.6057]
[1729460201853,1.9187854,2710.0,2709.8,3.2078]
[1729460202351,1.9187854,2710.0,2709.9,0.36907]
[1729460202552,0.18466162,2710.0,2709.9,0.36907]
[1729460202852,2.3976593,2710.2,2709.8,3.2078]
[1729460203058,2.21751,2710.4,2709.8,3.2078]
[1729460203551,2.21751,2710.4,2710.1,0.36904]
[1729460203753,5.42531,2710.4,2710.1,0.36904]
[1729460204054,5.42531,2710.4,2709.7,3.54931257]
[1729460204055,2.22181383,2710.3,2709.7,3.2078]
[1729460204251,2.39857656,2710.1,2710.0,0.36905]
[1729460204443,4.43570621,2710.1,2710.0,0.36905]
[1729460204754,2.39857656,2710.1,2710.0,0.36905]
[1729460205357,2.20085513,2710.1,2710.0,0.36905]
[1729460205555,4.59943169,2710.2,2710.0,0.36905]
[1729460205756,2.20085513,2710.1,2710.0,0.36905]
[1729460206259,4.59943169,2710.2,2710.0,0.36905]
[1729460206559,2.20085513,2710.1,2710.0,0.36905]
[1729460207259,4.59943169,2710.2,2709.8,3.2078]
[1729460207453,1.9191099,2709.9,2709.8,3.57688]
[1729460207960,2.1037924,2709.9,2709.8,3.57688]
[1729460208354,1.9191099,2709.9,2709.8,3.57688]
[1729460209462,0.1846825,2709.9,2709.8,3.57688]
[1729460209656,2.58325706,2710.1,2710.0,0.36905]
[1729460209852,2.39857656,2710.1,2710.0,0.36905]
[1729460210256,4.60109859,2710.1,2710.0,0.36905]
[1729460210460,4.60391689,2710.1,2710.0,0.36905]
[1729460211764,4.41923639,2710.1,2710.0,0.36905]
[1729460211964,2.40139486,2710.1,2710.0,0.36905]
[1729460212167,4.60391689,2710.2,2710.0,0.36905]
[1729460212359,4.60391689,2710.1,2710.0,0.36905]
[1729460212862,2.40139486,2710.1,2710.0,0.36905]
[1729460213364,2.01784153,2710.1,2710.0,0.36905]
[1729460213662,2.20252203,2710.2,2710.0,0.36904]
[1729460213863,2.20252203,2710.1,2710.0,0.36904]
[1729460214063,2.20252203,2710.2,2710.0,0.36904]
[1729460214265,2.20252203,2710.1,2710.0,0.36904]
[1729460214458,2.20252203,2710.2,2710.0,0.36904]
[1729460214654,2.20629379,2710.1,2710.0,0.36904]
[1729460215162,2.20629379,2710.2,2710.0,0.36904]
[1729460215467,2.20629379,2710.1,2710.0,0.36904]
[1729460215668,2.20629379,2710.2,2709.9,0.36907]
[1729460215970,2.20629379,2710.1,2710.0,0.36904]
[1729460216365,2.20629379,2710.2,2710.0,0.36905]
[1729460216565,2.20629379,2710.1,2710.0,0.36905]
[1729460216758,2.20629379,2710.2,2710.0,0.36905]
[1729460216961,2.20629379,2710.1,2710.0,0.36905]
[1729460217170,2.20629379,2710.2,2710.0,0.36905]
[1729460217461,2.20629379,2710.1,2710.0,0.36905]
[1729460217762,2.0216117,2710.1,2710.0,0.36905]
[1729460217957,2.20629379,2710.1,2710.0,0.36905]
[1729460218571,0.18468209,2710.1,2710.0,0.36905]
[1729460218960,5.45361964,2710.3,2710.0,0.36905]
[1729460219265,2.20629379,2710.2,2710.0,0.36905]
[1729460219465,2.20629379,2710.1,2710.0,0.36905]
[1729460219663,2.0216117,2710.1,2710.0,0.36905]
[1729460219968,0.18468209,2710.1,2710.0,0.36905]
[1729460220159,2.20629379,2710.1,2710.0,0.36905]
[1729460220364,0.36903,2710.2,2710.0,0.36905]
[1729460220564,2.20629379,2710.1,2710.0,0.36905]
[1729460221177,2.20629379,2710.2,2710.0,0.36905]
[1729460221373,2.20629379,2710.1,2710.0,0.36905]
[1729460221569,3.24732585,2710.3,2710.1,0.36904]
[1729460221770,2.20676283,2710.2,2710.1,0.36904]
[1729460222179,2.20676283,2710.2,2709.8,3.2078]
[1729460222381,2.20676283,2710.1,2710.0,0.36905]
[1729460222580,2.02208187,2710.1,2710.0,0.36905]
[1729460222883,2.02208187,2710.1,2710.0,4.17406294]
[1729460222884,2.40583103,2710.1,2710.0,4.17406294]